[Event "Pro Chess League 2023"]
[Site "Chess.com"]
[Date "2023.05.11"]
[Round "2"]
[White "Praggnanandhaa, R."]
[Black "Xu, Yinglun"]
[Result "0-1"]
[WhiteElo "2688"]
[BlackElo "2527"]
[ECO "C00"]
[EventDate "2023.??.??"]
[Annotator "rafael"]
[PlyCount "68"]
[Beauty "8042326324246"]
[EventType "schev"]
[EventRounds "3"]
[TimeControl "600+2"]

{[%evp 0,68,21,21,18,-10,-12,1,-1,8,15,-6,0,6,-1,6,6,1,23,-21,-21,-45,-38,-44,-38,-38,-30,-54,-52,-66,-47,-56,-64,-76,-65,-67,-54,-41,-42,-42,-51,-57,-53,-39,-27,-37,-28,-49,-43,-35,-47,-72,-73,-79,-80,-236,-253,-239,-253,-252,-252,-358,-428,-452,-511,-508,-551,-1126,-1155,-1218,-1107]} 
1.Nf3 d5 2.g3 Nf6 3.Bg2 e6 4.O-O Be7 5.d3 O-O 6.Nbd2 c5 7.e4 Nc6 8.Re1 b5 9.e5 Nd7 10.Nf1 {All this is well known in the King´s Indian Attack. This opening became very popular especially after Bobby Fischer won spectacular games with it. It's attractive because White's moves are schematic, which makes it interesting for fast-paced games, as you know what to do. That said, the attack isn't so easy to execute.} 10...Qc7 ( 10...a5 {The immediate advance of the pawn is the most popular move.} ) 11.Bf4 Bb7 12.h4 Rfc8 13.h5 h6 $1 {[%c_effect h6;square;h6;type;GreatFind;persistent;true] It's important for Black to avoid the move h5-h6, which creates weaknesses on the dark squares. There's a price to pay: White can try to sacrifice a piece on h6 or to play g4-g5 at some point.} 14.Qd2 ( 14.N1h2 {is the most popular move.} ) ( 14.c3 {is interesting in order to avoid Black's next move in the game.} ) 14...Nd4 {A new move.} ( 14...a5 ) 15.Nxd4 cxd4 16.Re2 a5 {The play becomes very concrete: Black advances the queenside, and White advances the kingside. Whoever arrives first, wins.} 17.Nh2 a4 18.a3 ( 18.Nf3 $1 {[%c_effect f3;square;f3;type;GreatFind;persistent;true] is more accurate.} 18...Qb6 19.g4 b4 20.g5 b3 {with big complications.} ) 18...Qb6 {Getting ready to play b4.} 19.Nf3 b4 20.axb4 Bxb4 21.Qc1 Bf8 $1 {[%c_effect f8;square;f8;type;GreatFind;persistent;true] A good move, bringing the bishop to the protection of the king.} 22.g4 {The advance of the g-pawn is White's only meaningful plan.} 22...Ba6 {Threatening to take on d3.} 23.Qb1 Nc5 24.g5 hxg5 25.Bxg5 $6 {[%c_effect g5;square;g5;type;Inaccuracy;persistent;true] This is the first mistake of the game. It's better to capture with the knight.} ( 25.Nxg5 Rab8 26.Ra2 a3 27.Rxa3 Qxb2 28.Qxb2 Rxb2 29.Bf1 {With a more or less equal endgame.} ) 25...Rab8 26.Ra2 $6 {[%c_effect a2;square;a2;type;Inaccuracy;persistent;true] This allows a nice tactical shot.} ( 26.Re1 {is better.} 26...Qxb2 27.Qxb2 Rxb2 28.Nxd4 {With a slightly better endgame for Black.} ) 26...Ne4 $1 {[%c_effect e4;square;e4;type;GreatFind;persistent;true] This move refutes White's play.} 27.Qd1 $2 {[%c_effect d1;square;d1;type;Mistake;persistent;true] This loses by force.} ( 27.Qa1 {is necessary.} 27...a3 28.Bc1 $1 {[%c_effect c1;square;c1;type;GreatFind;persistent;true] Black is much better, but there's no immediate win.} ) 27...a3 $1 {[%c_effect a3;square;a3;type;GreatFind;persistent;true]} 28.Bc1 Nc3 $3 {[%c_effect c3;square;c3;type;Brilliant;persistent;true] The second knight sacrifice in this game. Black wins material, and White's counterplay on the kingside is too late.} 29.bxc3 Qb1 30.h6 Qxa2 31.hxg7 Bxg7 32.Nxd4 Qb1 33.Re3 a2 34.Rg3 Qxc1 {The simplest.} ( 34...Qxc1 35.Qxc1 Rb1 ) 0-1

[Event "Superbet Chess Classic 2023"]
[Site "Chess.com"]
[Date "2023.05.08"]
[Round "3"]
[White "Caruana, Fabiano"]
[Black "Vachier Lagrave, Maxime"]
[Result "1-0"]
[WhiteElo "2764"]
[BlackElo "2742"]
[ECO "E73"]
[EventDate "2023.??.??"]
[Annotator "rafael"]
[PlyCount "45"]
[Beauty "8251705917473"]
[EventType "team-tourn"]
[EventCountry "ROU"]
[TimeControl "5400+30"]

{[%evp 0,45,24,23,24,1,35,2,2,0,11,13,12,5,27,25,50,50,50,57,57,50,55,40,39,43,43,47,63,65,43,40,92,85,114,122,177,177,177,177,173,173,220,152,281,241,322,294]} 
1.d4 Nf6 2.c4 g6 3.h4 {As elite grandmasters show us in every tournament, it's possible to play anything in the opening these days, you just have to be well prepared. I guess I'm making this sound easier than it really is. The idea of this move is not so complex: White wants to play h5 at some point. This is mainly targeted against the Grunfeld Defence. I hope the reader is not offended by this spoiler, but it's curious that this pawn never managed to fulfill its destiny and stayed on h4 for the remainder of the game.} 3...Bg7 4.Nc3 O-O {Vachier-Lagrave accepts to play a King's Indian. Can this be considered Caruana's first victory in this game, or am I exaggerating $2} ( 4...d5 5.h5 $1 {[%c_effect h5;square;h5;type;GreatFind;persistent;true] Here it is: the real point of the daring advance on move three.} ) 5.e4 d6 6.Be2 $1 {[%c_effect e2;square;e2;type;GreatFind;persistent;true] The best way to make sense of the pawn on h4. Vachier-Lagrave himself has some experience on the white side of this position.} 6...c5 ( 6...h5 {is logical, stopping the pawn once and for all. But then White can try to place either a knight or a bishop on the g5-square. There's a lot of theory on this position.} ) ( 6...e5 {This was played by Carlsen.} 7.dxe5 $6 {[%c_effect e5;square;e5;type;Inaccuracy;persistent;true] A strange choice, since 7.d5 is much more natural.} ( 7.d5 ) 7...dxe5 8.Qxd8 Rxd8 9.h5 c6 {Vachier-Lagrave-Carlsen, Carlsen Inv Prelim (rapid) 2020.} ) 7.d5 b5 $5 {[%c_effect b5;square;b5;type;Interesting;persistent;true] Black chooses an improved version of the Benko Gambit.} ( 7...e6 {Vachier-Lagrave has played this move before.} 8.h5 exd5 9.exd5 Re8 10.h6 Bh8 11.Bg5 Qb6 {with a complicated game in Grischuk-Vachier-Lagrave, Paris (rapid) 2019.} ) 8.cxb5 a6 {As I was about to make fun of one more failed attempt of playing the Benko Gambit, I suddenly found out that I had played this position with Black myself. The past always comes back to haunt us. To be fair, I managed to get a pretty good position against a strong opponent.} 9.a4 ( 9.b6 $6 {[%c_effect b6;square;b6;type;Inaccuracy;persistent;true] The problem with the Benko Gambit is that it loses a pawn. Enough said.} 9...Qxb6 10.Nh3 h5 $1 {[%c_effect h5;square;h5;type;GreatFind;persistent;true]} 11.Ng5 Nbd7 12.O-O Ne5 13.Na4 Qc7 14.Bf4 Nh7 {I remember that I liked my position at this point. Vescovi-Leitao, Sao Paulo 2007.} ) 9...axb5 10.Bxb5 Ba6 11.Bxa6 ( 11.Bd2 {Vachier-Lagrave used this move to beat Svidler in 2021.} 11...Bxb5 12.axb5 Nbd7 13.Nf3 Rxa1 14.Qxa1 Qb6 15.O-O Rb8 16.Qa6 Ne8 {Black has a good position since the knight is going to c7 and the b5-pawn is about to be lost, but somehow White won the game in Vachier-Lagrave-Svidler, St. Louis 2021.} ) 11...Nxa6 12.Nf3 {Here we have a much better version for Black of the traditional gambit, since the pawn on h4 leaves some weaknesses on White's position. Honestly, if this position is not playable for Black, then I have bad news for Benko Gambit lovers. The question is: what's the best way for Black to explore the lead in initiative and the weakened g4-square to fight for compensation $2} 12...Qd7 {A novelty. Vachier-Lagrave aims his queen at the kingside, but his piece's only got a one-way ticket for its journey.} ( 12...Ng4 $6 {[%c_effect g4;square;g4;type;Inaccuracy;persistent;true] is obviously premature, as it allows the advance of the pawn.} 13.h5 $1 {[%c_effect h5;square;h5;type;GreatFind;persistent;true]} ) ( 12...e6 $6 {[%c_effect e6;square;e6;type;Inaccuracy;persistent;true]} 13.dxe6 $1 {[%c_effect e6;square;e6;type;GreatFind;persistent;true]} 13...fxe6 14.O-O d5 15.Bg5 {leads to a clear advantage for White.} ) ( 12...h5 13.O-O Ng4 {was played in Boyer-Bailet, Vaujany op 2021.} ) ( 12...Nb4 {is natural, but the queen probably will go to d7 anyway after} 13.O-O ) 13.O-O Qg4 $6 {[%c_effect g4;square;g4;type;Inaccuracy;persistent;true]} ( 13...Nb4 $1 {[%c_effect b4;square;b4;type;GreatFind;persistent;true] is more accurate, leaving all options open. Black can play with c5-c4, Qg4, or Ng4. The compensation for the pawn seems quite decent.} ) 14.Re1 Nb4 15.Bg5 $1 {[%c_effect g5;square;g5;type;GreatFind;persistent;true] A very strong move by Caruana. It's the only move that gives White a clear edge, and it was probably missed by Black.} ( 15.e5 $6 {[%c_effect e5;square;e5;type;Inaccuracy;persistent;true] is premature.} 15...dxe5 16.Nxe5 Qxh4 ) 15...Nh5 $2 {[%c_effect h5;square;h5;type;Mistake;persistent;true] This is based on a miscalculation. The initiative is not strong enough to compensate for the missing pawns.} ( 15...h6 {This is the critical try, but White has the advantage after some precise moves.} 16.Bxf6 Bxf6 ( 16...exf6 {is not as bad as it looks if Black manages to play f6-f5 one day, but White is in control after} 17.Nb5 ) 17.e5 $1 {[%c_effect e5;square;e5;type;GreatFind;persistent;true]} 17...dxe5 18.Re4 $1 {[%c_effect e4;square;e4;type;GreatFind;persistent;true]} ( 18.Nxe5 {is not so convincing after} 18...Qxh4 ) 18...Qf5 19.Qe2 Rfd8 20.Rd1 {followed by 21.Nxe5 with a clear advantage.} ) 16.Bxe7 Nf4 17.g3 Rfe8 ( 17...Nbd3 {is an interesting attempt, but it's refuted after} 18.Ng5 $1 {[%c_effect g5;square;g5;type;GreatFind;persistent;true]} ( 18.Bxf8 $4 {[%c_effect f8;square;f8;type;Blunder;persistent;true] loses to} 18...Qh3 $1 {[%c_effect h3;square;h3;type;GreatFind;persistent;true]} 19.gxf4 Nxf4 {with inevitable mate.} ) 18...Qxd1 19.Raxd1 Nxb2 20.Bxf8 {and White will be ahead after both players capture all the hanging pieces.} ) 18.Bxd6 Nfd3 19.Re3 $1 {[%c_effect e3;square;e3;type;GreatFind;persistent;true]} 19...Nxb2 20.Qb3 N2d3 21.e5 {Black is left with a miserable position, but his agony will soon be over.} 21...f5 {A desperate attempt to complicate the game.} ( 21...c4 22.Qd1 {with two pawns up and an easy win for White.} ) 22.Nh2 Qh3 $6 {[%c_effect h3;square;h3;type;Inaccuracy;persistent;true]} ( 22...Qd4 {is better. Caruana could choose to repeat moves with 23.Nf3 and play something else later, or play 23.Rd1.} 23.Rd1 ( 23.Nf3 ) 23...c4 24.Qxb4 $1 {[%c_effect b4;square;b4;type;GreatFind;persistent;true]} 24...Qxe3 25.fxe3 Nxb4 26.Bxb4 Bxe5 27.Kf2 {with an easily winning endgame.} ) 23.Ne2 {Black's pieces are hanging, the queen is out of the game, and he is two pawns down. The game is over.} 1-0

[Event "Main Event"]
[Site "Chess.com"]
[Date "2023.06.13"]
[Round "1"]
[White "Dardha, Daniel"]
[Black "Lazavik, Denis"]
[Result "0-1"]
[WhiteElo "2619"]
[BlackElo "2553"]
[ECO "D00"]
[EventDate "2023.??.??"]
[Annotator "rafael"]
[PlyCount "78"]
[Beauty "7701144802832"]
[EventType "schev"]
[EventRounds "2"]
[TimeControl "180+1"]

1.d4 Nf6 2.Bg5 d5 3.e3 c5 {This variation is considered one of Black's best options against the Trompowsky.} 4.Bxf6 gxf6 5.dxc5 e6 6.Nf3 Bxc5 7.Be2 O-O ( 7...Nc6 {is played most often, but Lazavik shows an interesting plan in the game.} ) 8.O-O Be7 $5 {[%c_effect e7;square;e7;type;Interesting;persistent;true] A clever move, probably prepared beforehand. The bishop is useful on e7, as it can later be positioned on f6 (with f6-f5 and then Bf6). Meanwhile, Black fights against White's most active plan (c2-c4) by preparing to exchange queens.} ( 8...Nc6 9.c4 dxc4 {This position was featured in a few high-level games.} ) 9.c4 ( 9.Nbd2 {This move was tried in a correspondence game and also later in the match. White's attempts were unsuccessful in both cases.} 9...Nc6 10.Qc1 ( 10.a3 {Dardha played this later, but the result was also not good.} ) 10...b6 11.Rd1 Bb7 {with a good position for Black in Moessle-Corti, email 2020.} ) 9...dxc4 10.Qc2 Qc7 $1 {[%c_effect c7;square;c7;type;GreatFind;persistent;true] This is the idea of not developing the knight on c6 so soon.} 11.Nbd2 ( 11.Bxc4 {After this natural move, Black is able to exchange queens after} 11...b5 $1 {[%c_effect b5;square;b5;type;GreatFind;persistent;true] achieving a good position.} ) 11...Nd7 ( 11...b5 $6 {[%c_effect b5;square;b5;type;Inaccuracy;persistent;true] is bad since Black can't hold the pawn structure after} 12.a4 ) 12.Rac1 $6 {[%c_effect c1;square;c1;type;Inaccuracy;persistent;true] Another case of the \"wrong rook.\" I think it was Capablanca that once gave the right advice whenever you are in doubt about which rook you should move to a given file: \"Decide which rook looks the most natural to you. Then play the other one\".} ( 12.Qxc4 {leads to an equal endgame after} 12...Qxc4 13.Nxc4 ) ( 12.Rfc1 {is better, keeping the rook on a1 in case White needs to play a2-a4.} ) 12...b5 13.a4 a6 14.Nd4 {White regains the pawn after the b2-b3 break, but Black will be better anyway.} 14...Bb7 $1 {[%c_effect b7;square;b7;type;GreatFind;persistent;true]} 15.b3 ( 15.axb5 axb5 16.Nxb5 $2 {[%c_effect b5;square;b5;type;Mistake;persistent;true] loses a piece after} 16...Qc6 ) 15...Nc5 $1 {[%c_effect c5;square;c5;type;GreatFind;persistent;true]} 16.axb5 axb5 17.bxc4 b4 $1 {[%c_effect b4;square;b4;type;GreatFind;persistent;true] A typical device that has been seen many times in similar structures. The white c-pawn is blocked while the black b-pawn is dangerous.} 18.Rb1 Na4 {The knight wants to reach c3.} 19.Bf3 ( 19.Nb5 {Here and on the next move, White misses the chance to avoid Nc3 by Black.} ) 19...Bxf3 20.N4xf3 $6 {[%c_effect f3;square;f3;type;Inaccuracy;persistent;true]} ( 20.Nb5 $1 {[%c_effect b5;square;b5;type;GreatFind;persistent;true] is necessary.} ) 20...Nc3 {Now Black has a clear advantage with the monster knight.} 21.Ra1 Rfd8 22.Nd4 f5 $1 {[%c_effect f5;square;f5;type;GreatFind;persistent;true] The right plan. The bishop can go to f6, and Black can break with f5-f4.} 23.Qb3 f4 ( 23...Rxa1 24.Rxa1 e5 $1 {[%c_effect e5;square;e5;type;GreatFind;persistent;true]} 25.N4f3 ( 25.Nxf5 Rxd2 ) 25...Bf6 {followed by e5-e4 and White has a miserable position.} ) 24.N2f3 Bc5 25.Kh1 Rxa1 26.Rxa1 Qb7 27.Ra5 {This is not good, but White's position was very bad anyway.} 27...Ne4 ( 27...Ra8 $1 {[%c_effect a8;square;a8;type;GreatFind;persistent;true] wins with machine-like precision:} 28.Rxc5 Ne4 $1 {[%c_effect e4;square;e4;type;GreatFind;persistent;true] The exchange is lost since the rook has no time to move:} 29.Rb5 $2 {[%c_effect b5;square;b5;type;Mistake;persistent;true]} 29...Ra1+ 30.Ng1 Nxf2# ) 28.Qc2 ( 28.Ra2 {is more stubborn.} ) 28...fxe3 29.fxe3 b3 $1 {[%c_effect b3;square;b3;type;GreatFind;persistent;true]} 30.Qb2 ( 30.Nxb3 Rd1+ 31.Qxd1 Nf2+ {wins the queen.} ) 30...Qb4 31.Ra1 Qxc4 $6 {[%c_effect c4;square;c4;type;Inaccuracy;persistent;true]} ( 31...Bxd4 $1 {[%c_effect d4;square;d4;type;GreatFind;persistent;true] is more accurate:} 32.Nxd4 ( 32.exd4 Qxc4 {with a winning position.} ) 32...Qd2 $1 {[%c_effect d2;square;d2;type;GreatFind;persistent;true] Black wins with some pretty moves.} 33.Qxb3 Nf2+ 34.Kg1 Nd3 $1 {[%c_effect d3;square;d3;type;GreatFind;persistent;true] Threatening the e3-pawn.} 35.Nc2 Nc1 $1 {[%c_effect c1;square;c1;type;GreatFind;persistent;true] Nice geometry. White loses material.} ) 32.Qxb3 Qxb3 33.Nxb3 Bxe3 34.Re1 $6 {[%c_effect e1;square;e1;type;Inaccuracy;persistent;true]} ( 34.g3 {gives more chances.} ) 34...Rd3 {Let's not forget this is a blitz game, so mistakes are expected when the players are very low on time.} 35.Nc1 $6 {[%c_effect c1;square;c1;type;Inaccuracy;persistent;true]} ( 35.Rb1 {is better, although White is lost.} ) 35...Nf2+ $6 {[%c_effect f2;square;f2;type;Inaccuracy;persistent;true]} ( 35...Rd1 $1 {[%c_effect d1;square;d1;type;GreatFind;persistent;true] is the right move order:} 36.Rxd1 Nf2+ 37.Kg1 Nxd1+ {winning just like in the game.} ) 36.Kg1 Rd1 $6 {[%c_effect d1;square;d1;type;Inaccuracy;persistent;true]} ( 36...Ng4+ ) 37.Rxd1 $2 {[%c_effect d1;square;d1;type;Mistake;persistent;true]} ( 37.Kf1 $1 {[%c_effect f1;square;f1;type;GreatFind;persistent;true] defends everything. Black has to try to win the endgame a pawn up, but it's unclear whether this is possible.} ) 37...Nxd1+ {Now Lazavik wins a piece, and the game is over.} 38.Kf1 Bxc1 39.Ke2 Nc3+ 0-1